Cogmind - Beta 9.1 @@@ ROGUE MODE // 2019.11.02 @ 22:23:34 Player: Eggking Result: Self-destructed Performance ------------- Evolutions (1) 500 Regions Visited (3) 600 Robots Destroyed (9) 45 Value Destroyed (175) 175 Prototype IDs (1) 20 Alien Tech Used (0) 0 Bonus (180) 180 TOTAL SCORE: 1520 Bonus ------- Follower Combat Kills 180 Cogmind --------- Core Integrity 400/400 Matter 300/300 Energy 125/125 System Corruption 0% Temperature Cool (0) Location -9/Materials Parts ------- Power (1) Light Ion Engine Propulsion (2) Wheel Wheel Utility (3) Large Storage Unit Signal Interpreter Weapon (3) EM Shotgun Assault Rifle Inventory (10) Light Nuclear Core Wheel Wheel Compact Wheel Experimental Sensor Array EM Shotgun EM Shotgun Rocket Launcher Mining Laser Plasma Flamer Peak State ------------ Power Light Ion Engine Propulsion Wheel Wheel Utility Large Storage Unit Experimental Sensor Array Weapon EM Shotgun Assault Rifle Inventory Light Nuclear Core Wheel Small Storage Unit EM Shotgun EM Shotgun Mining Laser [Rating: 14] Favorites ----------- Power Light Ion Engine Engine Light Ion Engine Propulsion Wheel Leg Aluminum Leg Wheel Wheel Utility Large Storage Unit Device Experimental Sensor Array Storage Large Storage Unit Processor Signal Interpreter Weapon Assault Rifle Energy Gun EM Shotgun Ballistic Gun Assault Rifle Build | -11 -10 -10 -9 ------- Run | Scr Mat Min Mat Slots Evolved 2 | . . . 2 Power . | . . . . Propulsion . | . . . . Utility 1 | . . . 1 Weapon 1 | . . . 1 Parts Attached 11 | . 8 3 . Power 2 | . 2 . . Engine 2 | . 2 . . Core . | . . . . Reactor . | . . . . Propulsion 4 | . 4 . . Treads . | . . . . Leg 1 | . 1 . . Wheel 3 | . 3 . . Hover . | . . . . Flight . | . . . . Utility 3 | . . 3 . Device 1 | . . 1 . Storage 1 | . . 1 . Processor 1 | . . 1 . Hackware . | . . . . Protection . | . . . . Artifact . | . . . . Weapon 2 | . 2 . . Energy Gun 1 | . 1 . . Energy Cannon . | . . . . Ballistic Gun 1 | . 1 . . Ballistic Cannon . | . . . . Launcher . | . . . . Special Weapon . | . . . . Impact Weapon . | . . . . Slashing Weapon . | . . . . Piercing Weapon . | . . . . Special Melee Weapon . | . . . . Unidentified Prototypes 1 | . . 1 . Parts Lost 5 | . 5 . . Power 2 | . 2 . . Propulsion 1 | . 1 . . Utility . | . . . . Weapon 2 | . 2 . . Highest Loss Streak 2 | . 2 . . Average Slot Usage (%) 92 | . 83 97 77 Engine 13 | . 13 14 11 Leg 7 | . 20 . . Wheel 20 | . 6 28 22 Device 4 | . . 7 . Storage 13 | . 14 14 11 Processor 3 | . . 4 11 Energy Gun 14 | . 14 14 11 Ballistic Gun 13 | . 12 14 11 Naked Turns . | . . . . Heaviest Build 25 | 11 14 25 24 Greatest Support 20 | 20 20 20 20 Greatest Overweight (x) 1 | . 1 1 1 Average Overweight (x) . | . . . 1 Largest Inventory Capacity 10 | . 6 10 10 Average Capacity 8 | . 6 9 10 Most Carried 10 | . 6 10 10 Average Carried 7 | . 5 8 10 Final Capacity 10 | 6 6 10 10 Final Carried 10 | 6 6 10 10 Class Distribution -------------------- 100% | Mutant Dominant Class ---------------- Mutant | -10/Materials Mutant | -10/Mines Mutant | -9/Materials Resources | -11 -10 -10 -9 ----------- Run | Scr Mat Min Mat Matter Collected 341 | 200 76 65 . Remotely . | . . . . Salvage Created 243 | . 243 . . Parts 19 | . 19 . . Haulers Intercepted . | . . . . Recyclers Shooed 1 | . 1 . . Parts Field Recycled . | . . . . Retrieved Matter . | . . . . Parts Self-Destructed . | . . . . Prevented . | . . . . Kills | -11 -10 -10 -9 ------- Run | Scr Mat Min Mat Combat Hostiles Destroyed 9 | . 9 . . Guns 9 | . 9 . . Classes Destroyed 2 | . 2 . . Swarmer 6 | . 6 . . Grunt 3 | . 3 . . Best Kill Streak 4 | . 4 . . Combat Bots Only 4 | . 4 . . Max Kills in Single Turn 1 | . 1 . . Gunslinging . | . . . . Exploded . | . . . . Melee . | . . . . Uniques/NPCs Destroyed . | . . . . Combat | -11 -10 -10 -9 -------- Run | Scr Mat Min Mat Damage Taken 491 | . 477 14 . Core 21 | . 7 14 . Absorbed by Shields . | . . . . Core Remaining (%) 95 | 100 . 91 . Volleys Fired 25 | . 25 . . Largest 2 | . 2 . . Hottest 90 | . 90 . . Shots Fired 40 | . 40 . . Gun 40 | . 40 . . Cannon . | . . . . Launcher . | . . . . Special . | . . . . Kinetic 12 | . 12 . . Thermal 3 | . 3 . . Explosive . | . . . . Electromagnetic 25 | . 25 . . Robot Hit Streak 7 | . 7 . . Robot Miss Streak 8 | . 8 . . Penetration Max . | . . . . Secondary Targets . | . . . . Shots Hit Robots 21 | . 21 . . Core Hits 15 | . 15 . . Critical Hits . | . . . . Critical Kills . | . . . . Critical Parts Destroyed . | . . . . Melee Attacks . | . . . . Impact . | . . . . Slashing . | . . . . Piercing . | . . . . Sneak Attacks . | . . . . Combat Hostiles . | . . . . Follow-up Attacks . | . . . . Damage Inflicted 245 | . 245 . . Guns 240 | . 240 . . Cannons . | . . . . Explosions . | . . . . Melee . | . . . . Ramming 5 | . 5 . . Kinetic 64 | . 64 . . Thermal . | . . . . Explosive . | . . . . Electromagnetic 176 | . 176 . . Impact . | . . . . Slashing . | . . . . Piercing . | . . . . Highest Corruption . | . . . . Average Corruption . | . . . . Corruption Purged . | . . . . Overload Shots . | . . . . Overflow Damage . | . . . . Projectiles . | . . . . Explosions . | . . . . Melee . | . . . . Knockbacks . | . . . . Impact . | . . . . Kinetic . | . . . . Secondary . | . . . . Self-Inflicted Damage 2 | . 2 . . Shots . | . . . . Rammed 1 | . 1 . . Targets Rammed 1 | . 1 . . Kicked . | . . . . Crushed . | . . . . Highest Temperature 60 | . 60 . . Average Temperature 29 | . 29 . . Received Heat Transfer 42 | . 33 9 . Siege Activations . | . . . . Robots Corrupted . | . . . . Combat Hostiles . | . . . . Parts Fried . | . . . . Impact Corruptions . | . . . . Robots Melted . | . . . . Combat Hostiles . | . . . . Parts Melted . | . . . . Heat Transferred . | . . . . Parts Sabotaged . | . . . . Parts Stolen . | . . . . Parts Stripped . | . . . . Power Chain Reactions . | . . . . Missiles Intercepted . | . . . . Alert | -11 -10 -10 -9 ------- Run | Scr Mat Min Mat Peak Influence 230 | . 230 129 . Average Influence 52 | . 54 52 . Maximum Alert Level 1 | . 1 . . Low Security (%) 98 | . . . . Level 1 1 | . . . . Level 2 . | . . . . Level 3 . | . . . . Level 4 . | . . . . Level 5 . | . . . . High Security . | . . . . Max Security . | . . . . Squads Dispatched 2 | . 1 . 1 Investigation . | . . . . Extermination . | . . . . Reinforcement 2 | . 1 . 1 Assault . | . . . . Garrison . | . . . . Intercept . | . . . . Construction Impeded . | . . . . Haulers Reinforced . | . . . . Stealth | -11 -10 -10 -9 --------- Run | Scr Mat Min Mat Distress Signals 3 | . 2 . 1 Communications Jammed . | . . . . Distress Signals . | . . . . Times Spotted 23 | . 20 2 1 Peak Tracking Total 7 | . 7 2 1 Tactical Retreats 2 | . 2 . . Traps | -11 -10 -10 -9 ------- Run | Scr Mat Min Mat Traps Triggered 1 | . 1 . . Indirectly . | . . . . Trap Hack Attempts . | . . . . Triggered . | . . . . Disarmed . | . . . . Reprogrammed . | . . . . Reused . | . . . . Traps Extracted . | . . . . Installed . | . . . . Triggered . | . . . . Machines | -11 -10 -10 -9 ---------- Run | Scr Mat Min Mat Machines Disabled . | . . . . Max in Single Turn . | . . . . Machines Sabotaged . | . . . . Garrisons Compromised . | . . . . Overloaded Fab Kills . | . . . . Fab Network Shutdowns . | . . . . Hacking | -11 -10 -10 -9 --------- Run | Scr Mat Min Mat Machines Accessed 3 | . 2 . 1 Terminals 3 | . 2 . 1 Fabricators . | . . . . Repair Stations . | . . . . Recycling Units . | . . . . Scanalyzers . | . . . . Garrison Access . | . . . . Total Hacks 8 | . 4 . 4 Successful 7 | . 4 . 3 Failed 1 | . . . 1 Catastrophic . | . . . . Database Lockouts . | . . . . Manual 6 | . 4 . 2 Terminals 8 | . 4 . 4 Fabricators . | . . . . Repair Stations . | . . . . Recycling Units . | . . . . Scanalyzers . | . . . . Garrison Access . | . . . . Terminal Hacks 1 | . . . 1 Zone Layout 1 | . . . 1 Fabricator Hacks . | . . . . Repair Station Hacks . | . . . . Recycling Unit Hacks . | . . . . Scanalyzer . | . . . . Garrison Access Hacks . | . . . . Unauthorized Hacks 12 | . 8 . 4 Terminals 6 | . 4 . 2 Track 3 | . 2 . 1 Botnet 3 | . 2 . 1 Fabricators . | . . . . Repair Stations . | . . . . Recycling Units . | . . . . Scanalyzers . | . . . . Garrison Access . | . . . . Data Cores Recovered . | . . . . Used . | . . . . Hacking Detections 1 | . . . 1 Full Trace Events . | . . . . Feedback Events . | . . . . Feedback Blocked . | . . . . Robot Schematics Acquired . | . . . . Robots Built . | . . . . Matter . | . . . . Time . | . . . . Total Robot Build Rating . | . . . . Part Schematics Acquired . | . . . . Parts Built . | . . . . Matter . | . . . . Time . | . . . . Total Part Build Rating . | . . . . Parts Repaired . | . . . . Time . | . . . . Parts Recycled . | . . . . Recycled Matter . | . . . . Retrieved Matter . | . . . . Retrieved Components . | . . . . Parts Scanalyzed . | . . . . Part Schematics Acquired . | . . . . Parts Damaged . | . . . . Bothacking | -11 -10 -10 -9 ------------ Run | Scr Mat Min Mat Used RIF Installer . | . . . . Robots Hacked . | . . . . Non-combat . | . . . . Combat . | . . . . Robot Hacks Applied . | . . . . Relay Couplers Released . | . . . . Robots Rewired . | . . . . Allies Hacked . | . . . . Hacks Repelled . | . . . . Allies | -11 -10 -10 -9 -------- Run | Scr Mat Min Mat Total Allies 4 | . . 4 . Largest Group 4 | . . 4 2 Highest-Rated Group 71 | . . 71 24 Highest-Rated Ally 31 | . . 31 16 Total Orders . | . . . . Ally Attacks 28 | . . 26 2 Total Damage 348 | . . 327 21 Kills 6 | . . 6 . Allies Corrupted . | . . . . Allies Melted . | . . . . Intel | -11 -10 -10 -9 ------- Run | Scr Mat Min Mat Robot Analysis Total . | . . . . Derelict Logs Recovered 1 | . . 1 . Drone Launches . | . . . . Drone Recoveries . | . . . . Exploration | -11 -10 -10 -9 ------------- Run | Scr Mat Min Mat Turns Passed 1539 | . 530 967 42 Spaces Moved 1417 | 1 397 973 46 Core . | . . . . Treads . | . . . . Legs 255 | 1 254 . . Wheels 1162 | . 143 973 46 Hover . | . . . . Flight . | . . . . Fastest Speed 80 | 120 80 80 90 Average Speed 93 | 120 105 87 90 Slowest Speed 150 | 120 150 90 90 Overloaded Moves . | . . . . Propulsion Burnouts . | . . . . Robots Hopped . | . . . . Cave-ins Triggered . | . . . . Exploration Rate (%) 45 | 2 72 99 8 Regions Visited 3 Branch Regions 1 Pre-discovered Areas 1 | . . 1 . Known Exits Taken 1 | . . 1 . Unknown Exits Taken 2 | 1 1 . . Scrap Searched 4 | . . 4 . Spaces Dug . | . . . . Terrain Destroyed . | . . . . Melee . | . . . . Projectile . | . . . . AOE . | . . . . Actions | -11 -10 -10 -9 --------- Run | Scr Mat Min Mat Total 1600 | . 467 1087 46 Wait 118 | . 25 93 . Move 1414 | . 396 972 46 Hop . | . . . . Pick Up 19 | . 8 11 . Fast Attach 1 | . . 1 . Attach 6 | . 5 1 . Detach . | . . . . Swap 4 | . 3 1 . Drop 12 | . 4 8 . Fire 25 | . 25 . . Melee . | . . . . Ram 1 | . 1 . . Kick . | . . . . Crush . | . . . . Escape Stasis . | . . . . Rewire . | . . . . Trap . | . . . . Miscellaneous . | . . . . Route ------- -11/Scrapyard -10/Materials (discovered 4 exits: *Mat x2 / [*Min x2]) -10/Mines (discovered 2 exits: *Mat x2) -9/Materials History --------- Turn | Location | Event 1 | -11/Scrapyard | Discovered new exit (range 0) 1 | -11/Scrapyard | Entered Materials 18 | -10/Materials | Discovered new exit (range 15) 184 | -10/Materials | Discovered new exit (range 5) 203 | -10/Materials | Discovered new exit (range 15) 318 | -10/Materials | Build established: Mutant 495 | -10/Materials | Discovered new exit (range 5) 531 | -10/Materials | Entered Mines 534 | -10/Mines | Received a Mining Laser from a helpful Derelict 554 | -10/Mines | Assisted by bots powering up and referring to "LRC-V3" 640 | -10/Mines | Learned location of Storage (-7) 661 | -10/Mines | Found a damaged Exp. Sensor Array with a note attached 666 | -10/Mines | Found Prototype Device 667 | -10/Mines | Identified Exp. Sensor Array 740 | -10/Mines | Received a Rocket Launcher from a helpful Derelict 868 | -10/Mines | A weapon hastily lodged in a ceiling crevice suddenly fell to the ground 872 | -10/Mines | Discovered new exit (range 9) 1017 | -10/Mines | Discovered new exit (range 7) 1166 | -10/Mines | Identified exit to Materials 1498 | -10/Mines | Entered Materials 1498 | -9/Materials | Accompanied by 2 allies 1498 | -9/Materials | Evolved 2 slots: Utility x1, Weapon x1 1540 | -9/Materials | Self-destructed Last Messages --------------- 01178_ Acquired 10 matter. PARAMETERS=UTILITY_1,WEAPON_1 LOCATION=MATERIALS GOAL=ESCAPE 01506_ ALERT: Hostiles spotted, dispatching reinforcements to Terminal M012. 01534_ K-01 Serf collects debris. 01540_ Connecting with Terminal... >>Trojan(Track) Trojan loaded successfully. Testing... Tracking enabled and active. >>Trojan(Botnet) Trojan loaded successfully. Testing... Terminal linked with 0 systems. Awaiting botnet instructions. >>Layout(Zone) Retrieving Zone 5G layout... Downloaded map data. Map ----- +----------------------------------------------------+ | ?????????????????????????????????????????????????? | | ?????????????????????????????????????????????????? | | ?????????????????????????????????????????????????? | | ?????????????????????????????????????????????????? | | ?????????????????????????????????????????????????? | | ?????????????????????????????????????????????????? | | ?????????????????????????????????????????????????? | | ?????????????????????????????????????????????????? | | ?????????????????????????????????????????????????? | | ?????????? #?????# # ## ????????? | | ?????????? #????##?###### ## ""????????? | | ?????????? #????# / ## T"????????? | | ?????????? #????# # ## ""????????? | | ?????????? #????# # ## ????????? | | ?????????? #????# # #####????????? | | ?????????? #????# # #???#????????? | | ?????????? #????######+## #??##????????? | | ??????????##+################# #??# ????????? | | ???????????# ## + #??# ??????? | | ???????????# ## #### ########+##### ??????? | | ???????????# ## #??# #???# # ??????? | | ???????????# ## #### ##??# """ # #?????? | | ??????????## ## ## #??# """ # #?????? | | ?????????? # ## #??# """ # #?????? | | ?????????? # ## T #??# # #?????? | | ?????????? T + ## @ #??# """ # #?????? | | ?????????? # ### ##??# """ # #?????? | | ??????????# ## #?# #???# """ # +?????? | | ??????????# ## #?# #???# # #?????? | | ??????????# ## #?#u #???########## #?????? | | ??????????# ## ### ##??????#"""## ####### | | ??????????# ##/####### ########"T"## | | ??????????# u | | ??????????# | | ??????????# ### ###### ### """ " "" | | ??????????# ###+###########?# """ [ "R"" | | ??????????# ## #????# """ """ | | ?????????? # #????# | | ?????????? # #????# | | ?????????? + """ """ #????#####+############ | | ???????????????????????????????? ?????????# | | ???????????????????????????????# "" #???????# | | ???????????????????????????????# """ #???????# | | ???????????????????????????????# S" #???????# | | ???????????????????????????????# #???????# | | ???????????????????????????????# #???????#### | | ???????????????????????????????########??????????? | | ?????????????????????????????????????????????????? | | ?????????????????????????????????????????????????? | | ?????????????????????????????????????????????????? | +----------------------------------------------------+ Best States ------------- Heat Dissipation 28 Energy Generation 10 Energy Capacity 250 Matter Stores 300 Matter Capacity 300 Sight Range 16 Robot Scan Range 30 Terrain Scan Density 10 Evasion (%) 44 Item Schematics ----------------- None Robot Schematics ------------------ None Fabricated ------------ Nothing Alien Tech Used ----------------- None Achievements -------------- None Challenges ------------ None Game ------ Seed BeamDisruptorGun Manual? 0 Play Time 00:16:37 Cumulative 314.1 hours Start 2019.11.02 @ 21:29:28 End 2019.11.02 @ 22:23:34 Sessions 1 Manual Loads 0 Difficulty Rogue Special Mode None Game No. 45 Rogue 45 Adventurer 0 Explorer 0 Win Type - Total 0 Types 0/0/0/0/0/0/0 Lore% 21 Gallery% 36 Achievement% 21 Wizard Run 0 Options --------- ASCII 0 Keyboard 0 Movement Numpad Keybinds 0 Fullscreen 1 Font 18/SmallcapsGlow Map View 76x50 Tactical HUD 1 Map Filters NONE Filters NONE Steam 1 RUN: 86bc4bf7-5edb-4e33-802d-f23dab4d8fde